Workbook

Sheet Informasjon
B2: HØP 2019-2022 Simuleringsmodell for utarbeidelse av drifts- og investeringsbudsjett
B6: Fyll ut navn til politisk parti:

Sheet Oppsummering
B2: Oppsummering av partiets budsjettforslag 2019-2022
B3: =+Informasjon!D6 -> 0
B5: =IF(SUM(C15:F15)<>0,"NB! forslaget til driftsbudsjettet er i ubalanse. Vennligst returner til driftsbudsjettet og utfør nødvendige endringer inntil driftsbalansen viser NULL i alle 4 år.","") -> 
E7: Beløp i hele tusen kroner
B8: Drift | C8: 2019 | D8: 2020 | E8: 2021 | F8: 2022
B9: Brutto driftsramme iht rådmannens forslag | C9: =+Drift!D310 -> 11238223 | D9: =+Drift!E310 -> 11359321 | E9: =+Drift!F310 -> 11448623 | F9: =+Drift!G310 -> 11497914
B10: Netto driftsresultat iht. rådmannens forslag | C10: =+Drift!D11 -> 0.01954657442 | D10: =+Drift!E11 -> 0.02054037289 | E10: =+Drift!F11 -> 0.01984819916 | F10: =+Drift!G11 -> 0.02156103747
B12: Brutto driftsramme iht. partiets forslag (omtrentlig) | C12: =+Drift!D311 -> 11238223 | D12: =+Drift!E311 -> 11359321 | E12: =+Drift!F311 -> 11448623 | F12: =+Drift!G311 -> 11497914
B13: Netto driftsresultat iht. partiets forslag (omtrentlig) | C13: =+'Grunnlag måltall'!I26 -> 0.01956904025 | D13: =+'Grunnlag måltall'!J26 -> 0.02054164688 | E13: =+'Grunnlag måltall'!K26 -> 0.01984349934 | F13: =+'Grunnlag måltall'!L26 -> 0.02156174582
B15: =+Drift!C15 -> Sum driftsbalanse (skal være null) | C15: =+Drift!D15 -> 0 | D15: =+Drift!E15 -> 0 | E15: =+Drift!F15 -> 0 | F15: =+Drift!G15 -> 0
B17: =IF(SUM(C22:F22)<>0,"Foreslåtte endringer i investeringsbudsjettet øker investeringsnivået samlet de neste 4 årene med:","") ->  | F17: =+SUM(C22:F22) -> 0
B19: Investeringer | C19: 2019 | D19: 2020 | E19: 2021 | F19: 2022
B20: Brutto investeringer iht. rådmannens forslag | C20: =+Investering!D9 -> 1140370 | D20: =+Investering!E9 -> 1118350 | E20: =+Investering!F9 -> 1302350 | F20: =+Investering!G9 -> 1084450
B21: Brutto investeringer iht. partiets forslag | C21: =+Investering!D11 -> 1140370 | D21: =+Investering!E11 -> 1118350 | E21: =+Investering!F11 -> 1302350 | F21: =+Investering!G11 -> 1084450
B22: Endring sammenlignet med rådmannens forslag | C22: =+C21-C20 -> 0 | D22: =+D21-D20 -> 0 | E22: 0 | F22: 0
B24: Udekket | C24: =+Investering!D23 -> 0 | D24: =+Investering!E23 -> 0 | E24: =+Investering!F23 -> 0 | F24: =+Investering!G23 -> 0
B26: =IF(AND(SUM(C32:F32)<>0, F26>0),"Endringer i låneopptak medfører en økning i kommunens kapitalkostnader sammenlagt for neste 4 år på:","") ->  | F26: =SUM(C32:F32) -> 0
B28: Låneopptak og finanskostnader | C28: 2019 | D28: 2020 | E28: 2021 | F28: 2022
B29: Låneopptak iht. rådmannens forslag | C29: =+Investering!D13 -> 645303 | D29: =+Investering!E13 -> 577436 | E29: =+Investering!F13 -> 851246.3333 | F29: =+Investering!G13 -> 641248.3333
B30: Låneopptak iht. partiets forslag | C30: =+Investering!D15 -> 645303 | D30: =+Investering!E15 -> 577436 | E30: =+Investering!F15 -> 851246.3333 | F30: =+Investering!G15 -> 641248.3333
B31: Endring sammenlignet med rådmannens forslag | C31: =+Investering!D14 -> 0 | D31: =+Investering!E14 -> 0 | E31: =+Investering!F14 -> 0 | F31: =+Investering!G14 -> 0
B32: Endring i kapitalkostnader som følge av endring i låneopptak | C32: =+'Grunnlag finans'!C41 -> 0 | D32: =+'Grunnlag finans'!D41 -> 0 | E32: =+'Grunnlag finans'!E41 -> 0 | F32: =+'Grunnlag finans'!F41 -> 0

Sheet Investering
C2: Handlings- og økonomiplan 2019-2022 INVESTERINGER
C4: =+Informasjon!D6 -> 0
G6: Beløp i hele tusen kroner
C7: 1. Oppsummering | D7: 2019 | E7: 2020 | F7: 2021 | G7: 2022 | H7: 2019-2022
C9: Rådmannens forslag til investeringsbudsjett | D9: =+D170 -> 1140370 | E9: =+E170 -> 1118350 | F9: 1302350 | G9: 1084450 | H9: =+D9+E9+F9+G9 -> 4645520
C10: Partiets endringer- totale endringer | D10: =+D171 -> 0 | E10: =+E171 -> 0 | F10: =+F171 -> 0 | G10: =+G171 -> 0 | H10: =+D10+E10+F10+G10 -> 0
C11: Nytt forslag til investeringsbudsjett justert for partiets endringer | D11: =+D9+D10 -> 1140370 | E11: =+E9+E10 -> 1118350 | F11: =+F9+F10 -> 1302350 | G11: =+G9+G10 -> 1084450 | H11: =+D11+E11+F11+G11 -> 4645520
C13: Låneopptak iht rådmannens forslag | D13: =+D175 -> 645303 | E13: =+E175 -> 577436 | F13: 851246.3333 | G13: 641248.3333 | H13: =+G13+F13+E13+D13 -> 2715233.667
C14: Låneopptak iht. partiet endringer | D14: =+D181 -> 0 | E14: =+E181 -> 0 | F14: =+F181 -> 0 | G14: =+G181 -> 0 | H14: =+D14+E14+F14+G14 -> 0
C15: Nytt nivå på låneopptak justert for partiet endringer | D15: =+D13+D14 -> 645303 | E15: =+E13+E14 -> 577436 | F15: =+F13+F14 -> 851246.3333 | G15: =+G13+G14 -> 641248.3333 | H15: =+H13+H14 -> 2715233.667
C17: Overføring fra drift iht rådmannens forslag | D17: 224158 | E17: 232330 | F17: 223170 | G17: 242666 | H17: =+G17+F17+E17+D17 -> 922324
C18: Overføring fra drift iht. partiets endringer | D18: =+D178 -> 0 | E18: =+E178 -> 0 | F18: 0 | G18: 0 | H18: =+G18+F18+E18+D18 -> 0
C19: Nytt nivå på overføring fra drift justert for partiets endringer | D19: =+D17+D18 -> 224158 | E19: =+E17+E18 -> 232330 | F19: =+F17+F18 -> 223170 | G19: =+G17+G18 -> 242666 | H19: =+H17+H18 -> 922324
C21: Udekket iht. rådmannens forslag | D21: =+(D175+D176)-D170 -> 0 | E21: =+(E175+E176)-E170 -> 0 | F21: =+(F175+F176)-F170 -> 0 | G21: =+(G175+G176)-G170 -> 0 | H21: =+D21+E21+F21+G21 -> 0
C23: Udekket iht. partiets forslag | D23: =+D182 -> 0 | E23: =+E182 -> 0 | F23: =+F182 -> 0 | G23: =+G182 -> 0 | H23: =+D23+E23+F23+G23 -> 0
C26: 2. HØP 2019-2022- Investeringstabell
C27: Diverse bygg og felles investeringer
C28: Rådmannens forslag- sum diverse bygg, anelgg og felles investeringer | D28: 217720 | E28: 195200 | F28: 221500 | G28: 189500 | H28: =+G28+F28+E28+D28 -> 823920
H29: =SUM(D29:G29) -> 0
H30: =SUM(D30:G30) -> 0
H31: 0
H32: 0
H33: 0
H34: 0
H35: 0
H36: 0
H37: 0
H38: 0
H39: 0
H40: 0
C41: Sum partiets endringer- diverse bygg og anlegg | D41: =SUM(D29:D40) -> 0 | E41: =SUM(E29:E40) -> 0 | F41: 0 | G41: 0 | H41: =SUM(H29:H40) -> 0
C42: Nytt forslag til budsjett justert for partiets endringer- diverse bygg og anlegg | D42: =+D28+D41 -> 217720 | E42: =+E28+E41 -> 195200 | F42: =+F28+F41 -> 221500 | G42: =+G28+G41 -> 189500 | H42: =+H28+H41 -> 823920
C44: Skole
C45: Rådmannens forslag- sum skole | D45: 204600 | E45: 296000 | F45: 443400 | G45: 389000 | H45: =+G45+F45+E45+D45 -> 1333000
H46: =SUM(D46:G46) -> 0
H47: =SUM(D47:G47) -> 0
H48: 0
H49: 0
H50: 0
H51: 0
H52: 0
H53: 0
H54: 0
H55: 0
H56: 0
H57: 0
C58: Sum partiets endringer- skole | D58: =SUM(D46:D57) -> 0 | E58: =SUM(E46:E57) -> 0 | F58: 0 | G58: 0 | H58: =SUM(H46:H57) -> 0
C59: Nytt forslag til budsjett justert for partiets endringer- skole | D59: =+D45+D58 -> 204600 | E59: =+E45+E58 -> 296000 | F59: =+F45+F58 -> 443400 | G59: =+G45+G58 -> 389000 | H59: =+H45+H58 -> 1333000
C61: Barnehage
C62: Rådmannens forslag- sum barnehage | D62: 130500 | E62: 123800 | F62: 136000 | G62: 53000 | H62: =+G62+F62+E62+D62 -> 443300
H63: =SUM(D63:G63) -> 0
H64: =SUM(D64:G64) -> 0
H65: 0
H66: 0
H67: 0
H68: 0
H69: 0
H70: 0
H71: 0
H72: 0
H73: 0
H74: 0
C75: Sum partiets endringer- barnehage | D75: =SUM(D63:D74) -> 0 | E75: =SUM(E63:E74) -> 0 | F75: 0 | G75: 0 | H75: =SUM(H63:H74) -> 0
C76: Nytt forslag til budsjett justert for partiets endringer- barnehage | D76: =+D62+D75 -> 130500 | E76: =+E62+E75 -> 123800 | F76: =+F62+F75 -> 136000 | G76: =+G62+G75 -> 53000 | H76: =+H62+H75 -> 443300
C78: Helse og velferd (eks. bolig bygg KF)
C79: Rådmannens forslag- sum levekår | D79: 152500 | E79: 108500 | F79: 114500 | G79: 129500 | H79: =+G79+F79+E79+D79 -> 505000
H80: =SUM(D80:G80) -> 0
H81: =SUM(D81:G81) -> 0
H82: 0
H83: 0
H84: 0
H85: 0
H86: 0
H87: 0
H88: 0
H89: 0
H90: 0
H91: 0
C92: Sum partiets endringer- levekår | D92: =SUM(D80:D91) -> 0 | E92: =SUM(E80:E91) -> 0 | F92: 0 | G92: 0 | H92: =SUM(H80:H91) -> 0
C93: Nytt forslag til budsjett justert for partiets endringer- levekår | D93: =+D79+D92 -> 152500 | E93: =+E79+E92 -> 108500 | F93: 114500 | G93: =+G79+G92 -> 129500 | H93: =+H79+H92 -> 505000 | I93: 18350
C95: Idrett
C96: Rådmannens forslag- sum idrettsbygg | D96: 84700 | E96: 12000 | F96: 1500 | G96: 5000 | H96: =+G96+F96+E96+D96 -> 103200
H97: =SUM(D97:G97) -> 0
H98: =SUM(D98:G98) -> 0
H99: 0
H100: 0
H101: 0
H102: 0
H103: 0
H104: 0
H105: 0
H106: 0
H107: 0
H108: 0
H109: 0
H110: 0
C111: Sum partiets endringer- idrettsbygg | D111: =SUM(D97:D110) -> 0 | E111: =SUM(E97:E110) -> 0 | F111: 0 | G111: 0 | H111: =SUM(H97:H110) -> 0
C112: Nytt forslag til budsjett justert for partiets endringer- idrettsbygg | D112: =+D96+D111 -> 84700 | E112: =+E96+E111 -> 12000 | F112: =+F96+F111 -> 1500 | G112: =+G96+G111 -> 5000 | H112: =+H96+H111 -> 103200
C114: Vann, avløp og renovasjon
C115: Rådmannens forslag- sum vann, avløp og renovasjon | D115: 145400 | E115: 145900 | F115: 146500 | G115: 144500 | H115: =+G115+F115+E115+D115 -> 582300
H116: =SUM(D116:G116) -> 0
H117: =SUM(D117:G117) -> 0
H118: 0
H119: 0
H120: 0
H121: 0
H122: 0
H123: =+D123+E123+F123+G123 -> 0
H124: 0
H125: 0
H126: 0
H127: 0
H128: 0
H129: 0
C130: Sum partiets endringer- vann, avløp og renovasjon | D130: =SUM(D116:D129) -> 0 | E130: =SUM(E116:E129) -> 0 | F130: 0 | G130: =SUM(G116:G129) -> 0 | H130: =+H123+H124+H125+H126+H127+H128+H129 -> 0
C131: Nytt forslag til budsjett justert for partiets endringer- Vann, avløp og renovasjon | D131: =+D115+D130 -> 145400 | E131: =+E115+E130 -> 145900 | F131: =+F115+F130 -> 146500 | G131: =+G115+G130 -> 144500 | H131: =+H115+H130 -> 582300
C133: Park og vei
C134: Rådmannens forslag- sum park og vei | D134: 155450 | E134: 145950 | F134: 149950 | G134: 140950 | H134: =+G134+F134+E134+D134 -> 592300
H135: =SUM(D135:G135) -> 0
H136: =SUM(D136:G136) -> 0
H137: 0
H138: 0
H139: 0
H140: 0
H141: 0
H142: 0
H143: 0
H144: 0
H145: 0
H146: 0
H147: 0
C148: Sum partiets endringer- park og vei | D148: =SUM(D135:D147) -> 0 | E148: =SUM(E135:E147) -> 0 | F148: 0 | G148: 0 | H148: =SUM(H135:H147) -> 0
C149: Nytt forslag til budsjett justert for partiets endringer- park og vei | D149: =+D134+D148 -> 155450 | E149: =+E134+E148 -> 145950 | F149: =+F134+F148 -> 149950 | G149: =+G134+G148 -> 140950 | H149: =+H134+H148 -> 592300
C151: Kirkelig fellesråd
C152: Rådmannens forslag- sum kirkelig fellesråd | D152: 49500 | E152: 91000 | F152: 89000 | G152: 33000 | H152: =+G152+F152+E152+D152 -> 262500
H153: =SUM(D153:G153) -> 0
H154: =SUM(D154:G154) -> 0
H155: 0
H156: 0
H157: 0
H158: 0
H159: 0
H160: 0
H161: 0
H162: 0
H163: 0
H164: 0
H165: 0
C166: Sum partiets endringer- kirkelig fellesråd | D166: =SUM(D153:D165) -> 0 | E166: =SUM(E153:E165) -> 0 | F166: 0 | G166: 0 | H166: =SUM(H153:H165) -> 0
C167: Nytt forslag til budsjett justert for partiets endringer- kirkelig fellesråd | D167: =+D152+D166 -> 49500 | E167: =+E152+E166 -> 91000 | F167: =+F152+F166 -> 89000 | G167: =+G152+G166 -> 33000 | H167: =+H152+H166 -> 262500
C169: Totale brutto investeringer
C170: Rådmannens forslag- totale brutto investeringer | D170: =+D152+D134+D115+D96+D79+D62+D45+D28 -> 1140370 | E170: =+E152+E134+E115+E96+E79+E62+E45+E28 -> 1118350 | F170: =+F152+F134+F115+F96+F79+F62+F45+F28 -> 1302350 | G170: =+G152+G134+G115+G96+G79+G62+G45+G28 -> 1084450 | H170: =+D170+E170+F170+G170 -> 4645520
C171: Partiets endringer- totale endringer ift. Rådmannens forslag | D171: =+D166+D148+D130+D111+D92+D75+D58+D41 -> 0 | E171: =+E166+E148+E130+E111+E92+E75+E58+E41 -> 0 | F171: =+F166+F148+F130+F111+F92+F75+F58+F41 -> 0 | G171: =+G166+G148+G130+G111+G92+G75+G58+G41 -> 0 | H171: =+D171+E171+F171+G171 -> 0
C172: Nytt forslag til budsjett justert for partiets endringer totalt | D172: =+D170+D171 -> 1140370 | E172: =+E170+E171 -> 1118350 | F172: =+F170+F171 -> 1302350 | G172: =+G170+G171 -> 1084450 | H172: =+H170+H171 -> 4645520
C174: Finansiering
C175: Rådmannens forslag låneopptak | D175: 645303 | E175: 577436 | F175: 851246.3333 | G175: 641248.3333 | H175: =+G175+F175+E175+D175 -> 2715233.667
C176: Rådmannensforslag egenfinansiering | D176: =+D170-D175 -> 495067 | E176: =+E170-E175 -> 540914 | F176: =+F170-F175 -> 451103.6667 | G176: =+G170-G175 -> 443201.6667 | H176: =+D176+E176+F176+G176 -> 1930286.333
C177: Partiets endringer i egenfinansiering føres under:
C178: Overføringer fra drift til investering (beregnes i driftsbudsjettet) | D178: =+Drift!D297 -> 0 | E178: =+Drift!E297 -> 0 | F178: =+Drift!F297 -> 0 | G178: =+Drift!G297 -> 0 | H178: =+D178+E178+F178+G178 -> 0
C179: Salgsinntekter | H179: =+D179+E179+F179+G179 -> 0
C180: Andre tilskudd | H180: =+D180+E180+F180+G180 -> 0
C181: Partiets endring i låneopptak (beregnes automatisk) | D181: =D171-(+D178+D179+D180) -> 0 | E181: =E171-(+E178+E179+E180) -> 0 | F181: =F171-(+F178+F179+F180) -> 0 | G181: =G171-(+G178+G179+G180) -> 0 | H181: =+D181+E181+F181+G181 -> 0
C182: Udekket iht. partiets endringer | D182: =+D172-(D175+D176+D178+D179+D180+D181) -> 0 | E182: =+E172-(E175+E176+E178+E179+E180+E181) -> 0 | F182: =+F172-(F175+F176+F178+F179+F180+F181) -> 0 | G182: =+G172-(G175+G176+G178+G179+G180+G181) -> 0

Sheet Drift
C2: Handlings- og økonomiplan 2019-2022 DRIFT
C3: =+Informasjon!D6 -> 0
F4: Beløp i hele tusen kroner
D5: 2019 | E5: =D5+1 -> 2020 | F5: =E5+1 -> 2021 | G5: =F5+1 -> 2022
C8: 1. Oppsummering
C10: Brutto budsjettramme iht. rådmannnens forslag | D10: =+D310 -> 11238223 | E10: =+E310 -> 11359321 | F10: 11448623 | G10: 11497914
C11: Netto driftsresultat iht. rådmannens forslag | D11: 0.01954657442 | E11: 0.02054037289 | F11: 0.01984819916 | G11: 0.02156103747
C12: Brutto budsjettramme iht. partiets forslag | D12: =+D311 -> 11238223 | E12: =+E311 -> 11359321 | F12: 11448623 | G12: 11497914
C13: Netto driftsresultat iht. partiets forslag (omtrentlig) | D13: =+'Grunnlag måltall'!C57 -> 0.01956904025 | E13: =+'Grunnlag måltall'!D57 -> 0.02054164688 | F13: =+'Grunnlag måltall'!E57 -> 0.01984349934 | G13: =+'Grunnlag måltall'!F57 -> 0.02156174582
C15: Sum driftsbalanse (skal være null) | D15: =D314 -> 0 | E15: =E314 -> 0 | F15: =F314 -> 0 | G15: =G314 -> 0
C18: 2. HØP 2019-2022- driftsrammetabell
C21: Barnehage
C24: Sum brutto endringer iht. rådmannens forslag | D24: 54601 | E24: 37450 | F24: 24450 | G24: 12450
C25: Brutto budsjettramme iht. rådmannens forslag | D25: =1521718+12445 -> 1534163 | E25: =1504567+12445 -> 1517012 | F25: =1491567+12445 -> 1504012 | G25: =1479567+12445 -> 1492012
C26: Legg inn dine endringer under:
C46: Sum endring iht. partiets forslag | D46: =SUM(D27:D45) -> 0 | E46: =SUM(E27:E45) -> 0 | F46: 0 | G46: 0
C47: Ny budsjettramme iht. partiets forslag | D47: =+D25+D46 -> 1534163 | E47: =+E25+E46 -> 1517012 | F47: =+F25+F46 -> 1504012 | G47: =+G25+G46 -> 1492012
C51: Skole
C54: Sum brutto endringer iht. rådmannens forslag | D54: 34600 | E54: 42300 | F54: 40100 | G54: 36600
C55: Brutto budsjettramme iht. rådmannens forslag | D55: =1635007+13372 -> 1648379 | E55: =1642707+13372 -> 1656079 | F55: =1640507+13372 -> 1653879 | G55: =1637007+13372 -> 1650379
C56: Legg inn dine endringer under:
C79: Sum endring iht. partiets forslag | D79: =SUM(D57:D78) -> 0 | E79: =SUM(E57:E78) -> 0 | F79: 0 | G79: 0
C80: Ny budsjettramme iht. partiets forslag | D80: =+D55+D79 -> 1648379 | E80: =+E55+E79 -> 1656079 | F80: =+F55+F79 -> 1653879 | G80: =+G55+G79 -> 1650379
C84: Barn og unge
C87: Sum brutto endringer iht. rådmannens forslag | D87: -3880 | E87: -4010 | F87: -10810 | G87: -12110
C88: Brutto budsjettramme iht. rådmannens forslag | D88: =504676+4128 -> 508804 | E88: =504546+4128 -> 508674 | F88: =497746+4128 -> 501874 | G88: =496446+4128 -> 500574 | H88: 503815
C89: Legg inn dine endringer under:
C105: Sum endring iht. partiets forslag | D105: =SUM(D90:D104) -> 0 | E105: =SUM(E90:E104) -> 0 | F105: =SUM(F90:F104) -> 0 | G105: =SUM(G90:G104) -> 0
C106: Ny budsjettramme iht. partiets forslag | D106: =+D88+D105 -> 508804 | E106: =+E88+E105 -> 508674 | F106: =+F88+F105 -> 501874 | G106: =+G88+G105 -> 500574
C110: Helse og velferd
C113: Sum brutto endringer iht. rådmannens forslag | D113: =100119+3000-3000 -> 100119 | E113: =111540+3000-3000 -> 111540 | F113: =117590-3000+3000 -> 117590 | G113: =130190-3000+3000 -> 130190
C114: Brutto budsjettramme iht. rådmannens forslag | D114: =3661566+3000-3000 -> 3661566 | E114: =3672987+3000-3000 -> 3672987 | F114: =3679037+3000-3000 -> 3679037 | G114: =3691637+3000-3000 -> 3691637
C115: Legg inn dine endringer under:
C139: Sum endring iht. partiets forslag | D139: =SUM(D116:D138) -> 0 | E139: =SUM(E116:E138) -> 0 | F139: 0 | G139: 0
C140: Ny budsjettramme iht. partiets forslag | D140: =+D114+D139 -> 3661566 | E140: =+E114+E139 -> 3672987 | F140: =+F114+F139 -> 3679037 | G140: =+G114+G139 -> 3691637
C144: By- og samfunnsplanlegging
C147: Sum brutto endringer iht. rådmannens forslag | D147: 2040 | E147: -150 | F147: 200 | G147: 0
C148: Brutto budsjettramme iht. rådmannens forslag | D148: 103349 | E148: 103199 | F148: 103399 | G148: 103399
C149: Legg inn dine endringer under:
C166: Sum endring iht. partiets forslag | D166: =SUM(D150:D165) -> 0 | E166: =SUM(E150:E165) -> 0 | F166: 0 | G166: 0
C167: Ny budsjettramme iht. partiets forslag | D167: =+D148+D166 -> 103349 | E167: =+E148+E166 -> 103199 | F167: =+F148+F166 -> 103399 | G167: =+G148+G166 -> 103399
C171: Bymiljø og utbygging
C174: Sum brutto endringer iht. rådmannens forslag | D174: 99440 | E174: 140880 | F174: 165380 | G174: 186350
C175: Brutto budsjettramme iht. rådmannens forslag | D175: 1530834 | E175: 1572274 | F175: 1596774 | G175: 1617744
C176: Legg inn dine endringer under:
C196: Sum endring iht. partiets forslag | D196: =SUM(D177:D195) -> 0 | E196: =SUM(E177:E195) -> 0 | F196: =SUM(F177:F195) -> 0 | G196: =SUM(G177:G195) -> 0
C197: Ny budsjettramme iht. partiets forslag | D197: =+D175+D196 -> 1530834 | E197: =+E175+E196 -> 1572274 | F197: =+F175+F196 -> 1596774 | G197: =+G175+G196 -> 1617744
C201: Innbygger- og samfunnskontakt
C204: Sum brutto endringer iht. rådmannens forslag | D204: =13570-1500 -> 12070 | E204: =12830-1500 -> 11330 | F204: =12830-1500 -> 11330 | G204: =12830-1500 -> 11330
C205: Brutto budsjettramme iht. rådmannens forslag | D205: =235623-1500 -> 234123 | E205: =234883-1500 -> 233383 | F205: =234883-1500 -> 233383 | G205: =234883-1500 -> 233383
C206: Legg inn dine endringer under:
C224: Sum endring iht. partiets forslag | D224: =SUM(D207:D223) -> 0 | E224: =SUM(E207:E223) -> 0 | F224: 0 | G224: 0
C225: Ny budsjettramme iht. partiets forslag | D225: =+D205+D224 -> 234123 | E225: =+E205+E224 -> 233383 | F225: =+F205+F224 -> 233383 | G225: =+G205+G224 -> 233383
C229: Stab og støttefunksjoner
C232: Sum brutto endringer iht. rådmannens forslag | D232: 8910 | E232: 8182 | F232: 8182 | G232: 8182
C233: Brutto budsjettramme iht. rådmannens forslag | D233: 392558 | E233: 391830 | F233: 391830 | G233: 391830
C234: Legg inn dine endringer under:
C253: Sum endring iht. partiets forslag | D253: =SUM(D235:D252) -> 0 | E253: =SUM(E235:E252) -> 0 | F253: 0 | G253: 0
C254: Ny budsjettramme iht. partiets forslag | D254: =+D233+D253 -> 392558 | E254: =+E233+E253 -> 391830 | F254: =+F233+F253 -> 391830 | G254: =+G233+G253 -> 391830
C258: Felles utgifter
C261: Sum endring iht. rådmannens forslag | D261: =129183-(5000+4915+7641) -> 111627 | E261: =211175-(5000+10197+4915) -> 191063 | F261: =289927-(5000+4915+8397) -> 271615 | G261: =322348-(5000+4915+8297) -> 304136
C262: Budsjettramme iht. rådmannens forslag | D262: =1642003-(5000+4915+7641) -> 1624447 | E262: =1723995-(5000+4915+10197) -> 1703883 | F262: =1802747-(5000+4915+8397) -> 1784435 | G262: =1835168-(5000+4915+8297) -> 1816956
C263: Legg inn dine endringer under:
C275: Sum endring iht. partiets forslag | D275: =+D264+D269+D270+D271+D272+D273+D274+D304+D305+D265+D266+D267+D268 -> 0 | E275: =+E264+E269+E270+E271+E272+E273+E274+E304+E305+E265+E266+E267+E268 -> 0 | F275: 0 | G275: 0
C276: Ny budsjettramme iht. partiets forslag | D276: =+D262+D275 -> 1624447 | E276: =+E262+E275 -> 1703883 | F276: 1784435 | G276: 1816956
C279: Felles inntekter
C283: Legg inn dine endringer under:
C284: Skatt fra inntekt og formue
C285: Rammetilskudd
C286: Eiendomsskatt
C294: Legg inn dine endringer i disposisjonsfond under:
C295: Disposisjonsfond
C297: Endring i overføring fra drift til investering (klikk på knappen under)
C300: Sum endringer i felles inntekter og utgifter iht. partiets forslag | D300: =ROUND(+D285+D286+D291+D275+D284+D292+D293+D295+D297+D287+D288+D289+D290,-1) -> 0 | E300: =ROUND(+E285+E286+E291+E275+E284+E292+E293+E295+E297+E287+E288+E289+E290,-1) -> 0 | F300: 0 | G300: 0
C303: Endringer i låneopptak i investeringsbudsjettet samt endringer i overføringer fra drift har medført følgende endringer i renter og avdrag:
C304: Renter, endret låneopptak (beregnes av modellen) | D304: =+'Grunnlag finans'!C36 -> 0 | E304: =+'Grunnlag finans'!D36 -> 0 | F304: =+'Grunnlag finans'!E36 -> 0 | G304: =+'Grunnlag finans'!F36 -> 0
C305: Endring avdragsbetalinger (beregnes av modellen) | D305: =+'Grunnlag finans'!C37 -> 0 | E305: =+'Grunnlag finans'!D37 -> 0 | F305: =+'Grunnlag finans'!E37 -> 0 | G305: =+'Grunnlag finans'!F37 -> 0
C310: Brutto driftsramme iht. rådmannens forslag | D310: =+D262+D233+D205+D175+D148+D114+D88+D55+D25 -> 11238223 | E310: =+E262+E233+E205+E175+E148+E114+E88+E55+E25 -> 11359321 | F310: 11448623 | G310: =+G262+G233+G205+G175+G148+G114+G88+G55+G25 -> 11497914
C311: Ny brutto driftsramme iht. partiets forslag | D311: =+D254+D276+D225+D197+D167+D140+D106+D80+D47+D300 -> 11238223 | E311: =+E254+E276+E225+E197+E167+E140+E106+E80+E47+E300 -> 11359321 | F311: =+F254+F276+F225+F197+F167+F140+F106+F80+F47+F300 -> 11448623 | G311: =+G254+G276+G225+G197+G167+G140+G106+G80+G47+G300 -> 11497914
C314: Sum driftsbalanse (skal være null) | D314: =ROUND(+D46+D79+D105+D139+D166+D196+D224+D253+D300,-1) -> 0 | E314: =ROUND(+E46+E79+E105+E139+E166+E196+E224+E253+E300,-1) -> 0 | F314: =ROUND(+F46+F79+F105+F139+F166+F196+F224+F253+F300,-1) -> 0 | G314: =ROUND(+G46+G79+G105+G139+G166+G196+G224+G253+G300,-1) -> 0
H377: *

Sheet Grunnlag finans (hidden)
B10: Låneopptak
B14: Rådmannens forslag: | C14: 2019 | D14: 2020 | E14: 2021 | F14: 2022
B15: Ordinært låneopptak til investeringer | C15: =+Investering!D175 -> 645303 | D15: =+Investering!E175 -> 577436 | E15: =+Investering!F175 -> 851246.3333 | F15: =+Investering!G175 -> 641248.3333
B16: Startlån
B17: Låneopptak til videre utlån (ikke startlån)
B18: Sum låneopptak rådmannens forslag | C18: =+C15+C16+C17 -> 645303 | D18: =+D15+D16+D17 -> 577436 | E18: 851246.3333 | F18: 641248.3333
B20: Partiets forslag til endringer i låneopptak: | C20: 2019 | D20: 2020 | E20: 2021 | F20: 2022
B21: Iht. budsjettforslag fra partiet | C21: =+Investering!D181 -> 0 | D21: =+Investering!E181 -> 0 | E21: =+Investering!F181 -> 0 | F21: =+Investering!G181 -> 0
B22: Startlån
B23: Låneopptak til videre utlån (ikke startlån)
B24: Sum endringer i låneopptak per år iht. partiets forslag | C24: =+C21+C22+C23 -> 0 | D24: =+D21+D22+D23 -> 0 | E24: 0 | F24: 0
B26: Nytt låneopptak per år | C26: =+C24+C18 -> 645303 | D26: =+D24+D18 -> 577436 | E26: 851246.3333 | F26: 641248.3333
B30: Endring i finanskostnader
B32: Endring i finanskostnader | C32: 2019 | D32: 2020 | E32: 2021 | F32: 2022
B33: Rentesats | C33: 0.021 | D33: 0.0255 | E33: 0.0295 | F33: 0.031
B34: Nedbetalingstid (år) | C34: 30 | D34: 30 | E34: 30 | F34: 30
B35: Nytt lån | C35: =+Investering!D181 -> 0 | D35: =+Investering!E181 -> 0 | E35: =+Investering!F181 -> 0 | F35: =+Investering!G181 -> 0
B36: Renter | C36: =+C35*C33 -> 0 | D36: =+(C39+D35)*D33 -> 0 | E36: =+(D39+E35)*E33 -> 0 | F36: =+(E39+F35)*F33 -> 0
B37: Avdrag | C37: =+C35/C34 -> 0 | D37: =+(C35+D35)/D34 -> 0 | E37: =+(C35+D35+E35)/E34 -> 0 | F37: =+(C35+D35+E35+F35)/F34 -> 0
B38: Sum lån 1.januar | C38: =+C35 -> 0 | D38: =+C39+D35 -> 0 | E38: =+D39+E35 -> 0 | F38: =+E39+F35 -> 0
B39: Sum lån 31.desember | C39: =+C38-C37 -> 0 | D39: =+D38-D37 -> 0 | E39: =+E38-E37 -> 0 | F39: =+F38-F37 -> 0
B41: Sum endring finanskostnader | C41: =+C36+C37 -> 0 | D41: =+D36+D37 -> 0 | E41: =+E36+E37 -> 0 | F41: =+F36+F37 -> 0

Sheet Grunnlag måltall (hidden)
B2: Investeringer | C2: 2019 | D2: 2020 | E2: 2021 | F2: 2022
B3: Diverse bygg og felles investeringer | C3: =+Investering!D42 -> 217720 | D3: =+Investering!E42 -> 195200 | E3: =+Investering!F42 -> 221500 | F3: =+Investering!G42 -> 189500
B4: =+Investering!C44 -> Skole | C4: =+Investering!D59 -> 204600 | D4: =+Investering!E59 -> 296000 | E4: =+Investering!F59 -> 443400 | F4: =+Investering!G59 -> 389000
B5: =+Investering!C61 -> Barnehage | C5: =+Investering!D76 -> 130500 | D5: =+Investering!E76 -> 123800 | E5: =+Investering!F76 -> 136000 | F5: =+Investering!G76 -> 53000
B6: Helse og velferd (eks. Bolig bygg KF) | C6: =+Investering!D93 -> 152500 | D6: =+Investering!E93 -> 108500 | E6: =+Investering!F93 -> 114500 | F6: =+Investering!G93 -> 129500
B7: Idrett | C7: =+Investering!D112 -> 84700 | D7: =+Investering!E112 -> 12000 | E7: =+Investering!F112 -> 1500 | F7: =+Investering!G112 -> 5000
B8: VAR | C8: =+Investering!D131 -> 145400 | D8: =+Investering!E131 -> 145900 | E8: =+Investering!F131 -> 146500 | F8: =+Investering!G131 -> 144500
B9: Park og vei | C9: =+Investering!D149 -> 155450 | D9: =+Investering!E149 -> 145950 | E9: =+Investering!F149 -> 149950 | F9: =+Investering!G149 -> 140950
B10: Kirkebygg | C10: =+Investering!D152 -> 49500 | D10: =+Investering!E152 -> 91000 | E10: =+Investering!F152 -> 89000 | F10: =+Investering!G152 -> 33000
B12: Drift | C12: 2019 | D12: 2020 | E12: 2021 | F12: 2022
B13: =+Drift!C21 -> Barnehage | C13: =+Drift!D47 -> 1534163 | D13: =+Drift!E47 -> 1517012 | E13: =+Drift!F47 -> 1504012 | F13: =+Drift!G47 -> 1492012
B14: =+Drift!C51 -> Skole | C14: =+Drift!D80 -> 1648379 | D14: =+Drift!E80 -> 1656079 | E14: =+Drift!F80 -> 1653879 | F14: =+Drift!G80 -> 1650379
B15: =+Drift!C84 -> Barn og unge | C15: =+Drift!D106 -> 508804 | D15: =+Drift!E106 -> 508674 | E15: =+Drift!F106 -> 501874 | F15: =+Drift!G106 -> 500574
B16: =+Drift!C110 -> Helse og velferd | C16: =+Drift!D140 -> 3661566 | D16: =+Drift!E140 -> 3672987 | E16: =+Drift!F140 -> 3679037 | F16: =+Drift!G140 -> 3691637
B17: =+Drift!C144 -> By- og samfunnsplanlegging | C17: =+Drift!D167 -> 103349 | D17: =+Drift!E167 -> 103199 | E17: =+Drift!F167 -> 103399 | F17: =+Drift!G167 -> 103399
B18: =+Drift!C171 -> Bymiljø og utbygging | C18: =+Drift!D175 -> 1530834 | D18: =+Drift!E175 -> 1572274 | E18: =+Drift!F175 -> 1596774 | F18: =+Drift!G175 -> 1617744
B19: =+Drift!C201 -> Innbygger- og samfunnskontakt | C19: =+Drift!D205 -> 234123 | D19: =+Drift!E205 -> 233383 | E19: =+Drift!F205 -> 233383 | F19: =+Drift!G205 -> 233383
B20: Stab og støttefunksjoner | C20: =+Drift!D233 -> 392558 | D20: =+Drift!E233 -> 391830 | E20: =+Drift!F233 -> 391830 | F20: =+Drift!G233 -> 391830
B21: =+Drift!C258 -> Felles utgifter | C21: =+Drift!D262 -> 1624447 | D21: =+Drift!E262 -> 1703883 | E21: =+Drift!F262 -> 1784435 | F21: =+Drift!G262 -> 1816956
B23: Indikator | C23: 2013 | D23: 2014 | E23: 2015 | F23: 2016 | G23: 2017 | H23: 2018 | I23: 2019 | J23: 2020 | K23: 2021 | L23: 2022
B24: Egenfinansiering | C24: 0.42 | D24: 0.47 | E24: 0.45 | F24: 0.52 | G24: 0.63 | H24: 0.57 | I24: =+(Investering!D172-(Investering!D175+Investering!D181))/Investering!D172 -> 0.4341283969 | J24: =+(Investering!E172-(Investering!E175+Investering!E181))/Investering!E172 -> 0.4836714803 | K24: =+(Investering!F172-(Investering!F175+Investering!F181))/Investering!F172 -> 0.3463766781 | L24: =+(Investering!G172-(Investering!G175+Investering!G181))/Investering!G172 -> 0.4086879678
B25: Måltall > 50 % | C25: 0.5 | D25: 0.5 | E25: 0.5 | F25: 0.5 | G25: 0.5 | H25: 0.5 | I25: 0.5 | J25: 0.5 | K25: 0.5 | L25: 0.5
B26: Netto driftsresultat | C26: 0.01852431925 | D26: -0.01207512697 | E26: 0.03265214233 | F26: 0.04956557964 | G26: 0.04400459724 | H26: -0.002453250395 | I26: =+C57 -> 0.01956904025 | J26: =+D57 -> 0.02054164688 | K26: 0.01984349934 | L26: 0.02156174582
B27: Måltall > 3 % | C27: 0.03 | D27: 0.03 | E27: 0.03 | F27: 0.03 | G27: 0.03 | H27: 0.03 | I27: 0.03 | J27: 0.03 | K27: 0.03 | L27: 0.03
B28: Gjeldsgrad | C28: 0.558 | D28: 0.605 | E28: 0.608 | F28: 0.6073113539 | G28: 0.6182518888 | H28: 0.6242297725 | I28: =+C34 -> 0.6473569198 | J28: =+D34 -> 0.6644417567 | K28: 0.7066170534 | L28: 0.7241672359
B29: Måltall < 60 % | C29: 0.6 | D29: 0.6 | E29: 0.6 | F29: 0.6 | G29: 0.6 | H29: 0.6 | I29: 0.6 | J29: 0.6 | K29: 0.6 | L29: 0.6
B31: Gjeldsgrad | C31: 2019 | D31: 2020 | E31: 2021 | F31: 2020
B32: Driftsinntekter | C32: =+C51 -> 9898697 | D32: =+D51 -> 9960253 | E32: 10011843 | F32: 10075993
B33: Gjeldsnivå for bykassen ekskl. startlån | C33: =6407990+'Grunnlag finans'!C39 -> 6407990 | D33: =6618008+'Grunnlag finans'!D39 -> 6618008 | E33: =7074539+'Grunnlag finans'!E39 -> 7074539 | F33: =7296704+'Grunnlag finans'!F39 -> 7296704
B34: Gjeldsgrad (oppdateres automatisk) | C34: =+C33/C32 -> 0.6473569198 | D34: =+D33/D32 -> 0.6644417567 | E34: =+E33/E32 -> 0.7066170534 | F34: =+F33/F32 -> 0.7241672359
B36: Netto driftsresultat
B37: Rådmannensforslag | C37: 2019 | D37: 2020 | E37: 2021 | F37: 2020
B38: Driftsinntekter rådmannens forslag | C38: 9898697 | D38: 9960253 | E38: 10011843 | F38: 10075993
B39: Driftsutgifter rådmannens forslag | C39: 9950043 | D39: 9990974 | E39: 10009234 | F39: 10023032
B40: Brutto driftsresultat | C40: =+C38-C39 -> -51346 | D40: =+D38-D39 -> -30721 | E40: 2609 | F40: 52961
B41: Resultat eksterne finanstransaksjoner | C41: -189266 | D41: -198699 | E41: -237959 | F41: -269725
B42: Motpost avskrivninger | C42: 434720 | D42: 434720 | E42: 434720 | F42: 434720
B43: Nettodriftsresultat | C43: 194108 | D43: 205300 | E43: 199370 | F43: 217956
B44: Nettodriftsresultat i % | C44: =+C43/C38 -> 0.01960944961 | D44: =+D43/D38 -> 0.02061192622 | E44: 0.01991341654 | F44: 0.02163121789
B47: Endringer | C47: 2019 | D47: 2020 | E47: 2021 | F47: 2020
B48: Politiske endringer i utgifter ift. rådmannens forslag | C48: =+Drift!D46+Drift!D79+Drift!D105+Drift!D139+Drift!D166+Drift!D196+Drift!D224+Drift!D253+Drift!D275 -> 0 | D48: =+Drift!E46+Drift!E79+Drift!E105+Drift!E139+Drift!E166+Drift!E196+Drift!E224+Drift!E253+Drift!E275 -> 0 | E48: =+Drift!F46+Drift!F79+Drift!F105+Drift!F139+Drift!F166+Drift!F196+Drift!F224+Drift!F253+Drift!F275 -> 0 | F48: =+Drift!G46+Drift!G79+Drift!G105+Drift!G139+Drift!G166+Drift!G196+Drift!G224+Drift!G253+Drift!G275 -> 0
B49: Politiske endringer i inntekter iht. rådmannens forslag | C49: =SUM(Drift!D284:D293) -> 0 | D49: =SUM(Drift!E284:E293) -> 0 | E49: =SUM(Drift!F284:F293) -> 0 | F49: =SUM(Drift!G284:G293) -> 0
B51: Driftsinntekter etter politiske endringer | C51: =C38-C49 -> 9898697 | D51: =D38-D49 -> 9960253 | E51: 10011843 | F51: 10075993
B52: Driftutgifter etter politiske endringer | C52: =+C39+C48 -> 9950043 | D52: =+D39+D48 -> 9990974 | E52: 10009234 | F52: 10023032
B53: Brutto driftsresultat etter politiske endringer | C53: =+C51-C52 -> -51346 | D53: =+D51-D52 -> -30721 | E53: 2609 | F53: 52961
B54: Resultat eksterne finanstransaksjoner | C54: -189666 | D54: -199399 | E54: -238659 | F54: -270425
B55: Motpost avskrivninger | C55: 434720 | D55: 434720 | E55: 434720 | F55: 434720
B56: Nettodriftsresultat (etter politiske endringer) | C56: =+C53+C54+C55 -> 193708 | D56: =+D53+D54+D55 -> 204600 | E56: 198670 | F56: 217256
B57: Nettodriftsresultat (etter politiske endringer) | C57: =+C56/C51 -> 0.01956904025 | D57: =+D56/D51 -> 0.02054164688 | E57: 0.01984349934 | F57: 0.02156174582
